{"text_format":"3","workbook":"xlsx","n_sheets":3,"sheets":["Instructions","Cost Worksheet","Scoring Formula"],"not_rendered":{"images":1,"defined_names":3},"read":"whole","date_system":"1900"}

{"sheet":"Instructions","index":0,"n_rows":37,"n_cols":15,"rows_kept":37,"merged":[[1,1,1,2],[2,1,2,2],[5,1,5,2],[7,1,7,2],[8,1,8,2],[9,1,9,2],[17,1,17,2],[19,1,21,2],[22,1,22,2],[29,1,29,2]]}
[]
[null,"State of Georgia"]
[null,"In Conjunction with NASPO ValuePoint"]
[null,"Electronic Request for Proposals (\"eRFP\")"]
[null,"eRFP (Event) Number: 41900-DCH0000136"]
[null,"Event Name: Pharmacy Benefit Services"]
[null,"Attachment V - Pharmacy Clinical Management Services Cost Worksheet"]
[]
[null,"Instructions for Supplier"]
[null,"\nSuppliers are bidding on the Design, Development and Implementation (DDI), monthly Operations and Maintenance (O&M) costs, and  additional program support the Supplier will charge to administer the Pharmacy Clinical Management Services Program as described in the eRFP. Please refer to the instructions below, Attachment A eRFP document \"Section 5, Cost Proposal,\" Attachment C - Common Scope Requirements and Security Standards, and Attachment G - Pharmacy Clinical Management Services Scope of Work for details describing the scope of the Clinical Management Services to be provided before completing this Cost Worksheet."]
[null,1,"Supplier shall provide firm/fixed pricing for the service(s) and deliverables for which a response is being submitted to as described in the eRFP."]
[null,2,"Suppliers shall complete the Cost Proposal worksheet using the cells highlighted in yellow."]
[null,3,"Suppliers shall not modify any cells in the spreadsheet other than those highlighted yellow. The other cells are fixed or will calculate automatically."]
[null,4,"Suppliers shall insert 0 in any yellow highlighted cells that are not applicable or for which the proposed cost is zero ($0)."]
[null,5,"Suppliers shall not modify the formulas in the worksheets."]
[null,6,"For evaluation purposes, the total cost will be determined by the value found in D14 which is comprised of the total DDI (Table A) and O&M (Table B) Costs over a period of ten (10) years."]
[]
[null,"Instructions for Adjusting Costs One or More Years After the Effective Date of the Master Agreement  "]
[{"$nulls":14}," "]
[null,"For Participating Addenda signed one year or more years after the Effective Date of the Master Agreement, the cost will be adjusted using the Consumer Price Index Urban (CPI-U) to account for economic changes that may impact cost. "]
[]
[]
[null,"CPI-U for United States Adjustment Factor Calculation:",{"$nulls":12}," "]
[null,"CPI-U Index for the month and year of the execution of a Participating Addendum",{"$nulls":11}," "]
[null,"Less the CPI-U Index for the month and year of the Effective Date of the Master Agreement",{"$nulls":11}," "]
[null,"Equals Index Point Change",{"$nulls":11}," "]
[null,"Divided by CPI-U Index B: C/B = D",{"$nulls":11}," "]
[null,"Result multiplied by 100: D*100 = E: Equals CPI-U Inflation Percentage",{"$nulls":11}," "]
[null," ",{"$nulls":12}," "]
[null,"Steps to Adjust Costs for CPI-U",{"$nulls":12}," "]
[null,1,"Follow the link below to access the CPI-U data."]
[null,null,"https://www.bls.gov/cpi/tables/supplemental-files/home.htm"]
[null,2,"Select, download and save the file with the most recently published CPI-U data that is available for the month the Participating Addendum is signed. (Also find and select the CPI-U for when the Master Agreement was originally executed). Use the “All Items” CPI-U “Unadjusted indexes” values instead of the “Seasonally adjusted indexes” values."]
[null,3,"Enter the CPI-U value from the previous step in field C53 \"CPI-U for Participating Addendum Date.\"",{"$nulls":11}," "]
[null,4,"Enter the CPI-U value for the month of the Effective Date of the Master Agreement in C52 \"CPI-U for Master Agreement Date MM/DD/20YY.\" "]
[null,5,"The “CPI-U Inflation Percentage” will be calculated automatically based on the values from steps 3 and 4. This will also automatically update all the CPI-U Adjusted Price fields in the cost tables."]
[null,6,"CPI-U Adjusted Prices will be subject to negotiation upon execution of a Participating Addendum."]

{"sheet":"Cost Worksheet","index":1,"n_rows":56,"n_cols":27,"rows_kept":56,"merged":[[2,1,2,2],[5,1,5,2],[8,2,8,6],[9,2,9,6],[10,2,10,6],[11,2,11,6],[13,1,13,2],[13,3,13,6],[17,1,17,3],[24,1,24,2],[27,1,28,3],[27,4,27,5],[27,6,27,7],[27,8,27,9],[27,10,27,11],[27,12,27,13],[27,14,27,15],[27,16,27,17],[27,18,27,19],[27,20,27,21],[27,22,27,23],[27,24,28,25],[27,26,28,27],[29,1,29,3],[30,1,30,3],[31,1,31,3],[32,1,32,3],[33,1,33,3],[33,12,33,13],[33,14,33,15],[33,16,33,17],[33,18,33,19],[33,20,33,21],[33,22,33,23],[33,24,33,25],[33,26,33,27],[34,1,34,27],[37,1,37,3],[38,1,38,3],[38,4,38,5],[38,6,38,7],[38,8,38,9],[38,10,38,11],[38,12,38,13],[38,14,38,15],[38,16,38,17],[38,18,38,19],[38,20,38,21],[38,22,38,23],[38,24,39,24],[39,0,44,0],[39,2,39,3],[40,2,40,3],[41,2,41,3],[42,2,42,3],[43,2,43,3],[44,2,44,3],[45,1,46,23],[45,24,46,24],[47,1,47,24]]}
[]
[" ","State of Georgia"]
[" ","In Conjunction with NASPO ValuePoint"]
[null,"Electronic Request for Proposals (\"eRFP\")"]
[null,"eRFP (Event) Number: 41900-DCH0000136"]
[null,"Event Name: Pharmacy Benefit Services"]
[" ","Attachment V - Pharmacy Clinical Management Services Cost Worksheet"]
[" "," "]
[" ","SUPPLIER LEGAL ENTITY NAME:","Magellan Medicaid Administration, LLC"]
[null,"SUPPLIER REPRESENTATIVE NAME:","Billy Thomas"]
[" ","SUPPLIER REPRESENTATIVE TITLE:","SVP, Account Management"]
[null,"DATE:","2024-04-30"]
[" "]
[null,"TOTAL EVALUATION COST AMOUNT (Sum of Evaluation Costs Below):",null,{"$f":"+Y34+D25","v":{"v":15625446.540000001,"d":"$15,625,446.54"}}]
[" ",null," "]
[null,"Table A"]
[null,"Instructions: Please enter the costs to implement your services and/or Solution."]
[null,"Service Design, Development, and Implementation (DDI) Cost"]
[null,null,"Initial Cost","CPI-U Adjusted Cost"]
[null,"Project Planning and Startup",{"v":124785.34,"d":"$124,785.34"},{"$f":"+C20*$C$56","v":{"v":124785.34,"d":"$124,785.34"}}]
[null,"Design, Development, and Testing",{"v":222273.89,"d":"$222,273.89"},{"$f":"+C21*$C$56","v":{"v":222273.89,"d":"$222,273.89"}}]
[null,"Operational Readiness and Production Cutover",{"v":202776.18,"d":"$202,776.18"},{"$f":"+C22*$C$56","v":{"v":202776.18,"d":"$202,776.18"}}]
[null,"Training",{"v":144283.05,"d":"$144,283.05"},{"$f":"+C23*$C$56","v":{"v":144283.05,"d":"$144,283.05"}}]
[null,"Acceptance, Deployment",{"v":85789.92,"d":"$85,789.92"},{"$f":"+C24*$C$56","v":{"v":85789.92,"d":"$85,789.92"}}]
[null,"Total DDI Costs:",null,{"$f":"SUM(D20:D24)","v":{"v":779908.38,"d":"$779,908.38"}}]
[]
[null,"Table B"]
[null,"Operations and Maintenance (O&M)",null,null,"Year 1",null,"Year 2",null,"Year 3",null,"Year 4",null,"Year 5",null,"Year 6",null,"Year 7",null,"Year 8",null,"Year 9",null,"Year 10",null,"10-Year Total for Pharmacy Clinical Management Services O&M Administration",null,"For Informational Purposes Only\nAnnual Average Clinical Management Services Administration Cost"]
[{"$nulls":4},"Initial Rate","CPI-U Adjusted Rate","Initial Rate","CPI-U Adjusted Rate","Initial Rate","CPI-U Adjusted Rate","Initial Rate","CPI-U Adjusted Rate","Initial Rate","CPI-U Adjusted Rate","Initial Rate","CPI-U Adjusted Rate","Initial Rate","CPI-U Adjusted Rate","Initial Rate","CPI-U Adjusted Rate","Initial Rate","CPI-U Adjusted Rate","Initial Rate","CPI-U Adjusted Rate"]
[null,"Monthly Administration Fee"]
[null,"The monthly administration fee should include all the O&M costs to include, but not limited to the following:\n1.  State Advisory Board Support\n2.  Planning and Materials\n3.  Staffing\n4.  Utilization Management:  Development and Maintenance of PA Criteria for PDL and PADL \n5.  Technology Services (e.g., Document Repository)                                                                       \n(See Attachment  G - Pharmacy Clinical Management Services Scope of Work)"]
[null,"Total Monthly Cost",null,null,{"v":107915.32,"d":"$107,915"},{"$f":"E32*C56","v":{"v":107915.32,"d":"$107,915"}},{"v":111152.78,"d":"$111,153"},{"$f":"G32*C56","v":{"v":111152.78,"d":"$111,153"}},{"v":114487.36,"d":"$114,487"},{"$f":"I32*C56","v":{"v":114487.36,"d":"$114,487"}},{"v":117921.98,"d":"$117,922"},{"$f":"K32*C56","v":{"v":117921.98,"d":"$117,922"}},{"v":121459.64,"d":"$121,460"},{"$f":"M32*C56","v":{"v":121459.64,"d":"$121,460"}},{"v":125103.43,"d":"$125,103"},{"$f":"O32*C56","v":{"v":125103.43,"d":"$125,103"}},{"v":128856.53,"d":"$128,857"},{"$f":"Q32*C56","v":{"v":128856.53,"d":"$128,857"}},{"v":132722.23,"d":"$132,722"},{"$f":"S32*C56","v":{"v":132722.23,"d":"$132,722"}},{"v":136703.9,"d":"$136,704"},{"$f":"U32*C56","v":{"v":136703.9,"d":"$136,704"}},{"v":140805.01,"d":"$140,805"},{"$f":"W32*C56","v":{"v":140805.01,"d":"$140,805"}}]
[{"$nulls":4},{"v":12,"d":"X 12"},"months",{"v":12,"d":"X 12"},"months",{"v":12,"d":"X 12"},"months",{"v":12,"d":"X 12"},"months",{"v":12,"d":"X 12"},"months",{"v":12,"d":"X 12"},"months",{"v":12,"d":"X 12"},"months",{"v":12,"d":"X 12"},"months",{"v":12,"d":"X 12"},"months",{"v":12,"d":"X 12"},"months"]
[null,"Total Period Cost",null,null,{"$f":"F32*E33","v":{"v":1294983.84,"d":"= $ 1,294,984"}},null,{"$f":"H32*G33","v":{"v":1333833.3599999999,"d":"= $ 1,333,833"}},null,{"$f":"J32*I33","v":{"v":1373848.32,"d":"= $ 1,373,848"}},null,{"$f":"L32*K33","v":{"v":1415063.76,"d":"= $ 1,415,064"}},null,{"$f":"N32*M33","v":{"v":1457515.68,"d":"= $ 1,457,516"}},null,{"$f":"P32*O33","v":{"v":1501241.16,"d":"= $ 1,501,241"}},null,{"$f":"R32*Q33","v":{"v":1546278.3599999999,"d":"= $ 1,546,278"}},null,{"$f":"T32*S33","v":{"v":1592666.7600000002,"d":"= $ 1,592,667"}},null,{"$f":"V32*U33","v":{"v":1640446.7999999998,"d":"= $ 1,640,447"}},null,{"$f":"X32*W33","v":{"v":1689660.12,"d":"= $ 1,689,660"}},null,{"$f":"SUM(E34:W34)","v":{"v":14845538.16,"d":"= $ 14,845,538"}},null,{"$f":"Y34/10","v":{"v":1484553.816,"d":"= $ 1,484,554"}}]
[]
[]
[null,"Table C "]
[null,"Instructions: Complete the section below by entering the Hourly Rate in the yellow boxes for each identified Role. As may be requested by the State on a case by case basis and agreed upon by the Contractor, the Contractor will provide ad hoc services related to potential tasks as described below.\n\nNote: These charges will only be billed for project-related services not specified in the eRFP and requested by the State for such services in writing. The total cost for all State requested and approved projects shall not exceed the amount indicated by the State in its Participating Addendum. The proposed costs will not be evaluated as part of the total contract value."]
["Staff Roles and Responsibilities","Ad Hoc Professional Services",null,null,"Year 1",null,"Year 2",null,"Year 3",null,"Year 4",null,"Year 5",null,"Year 6",null,"Year 7",null,"Year 8",null,"Year 9",null,"Year 10",null,"10-Year Average of Hourly Rates"]
[null,"Role","Potential Responsibilities",null,"Initial Hourly Rate","CPI-U Adjusted Rate","Initial Hourly Rate","CPI-U Adjusted Rate","Initial Hourly Rate","CPI-U Adjusted Rate","Initial Hourly Rate","CPI-U Adjusted Rate","Initial Hourly Rate","CPI-U Adjusted Rate","Initial Hourly Rate","CPI-U Adjusted Rate","Initial Hourly Rate","CPI-U Adjusted Rate","Initial Hourly Rate","CPI-U Adjusted Rate","Initial Hourly Rate","CPI-U Adjusted Rate","Initial Hourly Rate","CPI-U Adjusted Rate"]
[null,"Clinical Pharmacist / Account Manager","Provides clinical consulting services for special projects. ",null,{"v":181.73,"d":"$181.73"},{"$f":"MAX(ROUND(E41*$C$56,2),0)","v":{"v":181.73,"d":"$181.73"}},{"v":187.18,"d":"$187.18"},{"$f":"MAX(ROUND(G41*$C$56,2),0)","v":{"v":187.18,"d":"$187.18"}},{"v":192.8,"d":"$192.80"},{"$f":"MAX(ROUND(I41*$C$56,2),0)","v":{"v":192.8,"d":"$192.80"}},{"v":198.58,"d":"$198.58"},{"$f":"MAX(ROUND(K41*$C$56,2),0)","v":{"v":198.58,"d":"$198.58"}},{"v":204.54,"d":"$204.54"},{"$f":"MAX(ROUND(M41*$C$56,2),0)","v":{"v":204.54,"d":"$204.54"}},{"v":210.68,"d":"$210.68"},{"$f":"MAX(ROUND(O41*$C$56,2),0)","v":{"v":210.68,"d":"$210.68"}},{"v":217,"d":"$217.00"},{"$f":"MAX(ROUND(Q41*$C$56,2),0)","v":{"v":217,"d":"$217.00"}},{"v":223.51,"d":"$223.51"},{"$f":"MAX(ROUND(S41*$C$56,2),0)","v":{"v":223.51,"d":"$223.51"}},{"v":230.22,"d":"$230.22"},{"$f":"MAX(ROUND(U41*$C$56,2),0)","v":{"v":230.22,"d":"$230.22"}},{"v":237.13,"d":"$237.13"},{"$f":"MAX(ROUND(W41*$C$56,2),0)","v":{"v":237.13,"d":"$237.13"}},{"$f":"(F41+H41+J41+L41+N41+P41+R41+T41+V41+X41)/10","v":{"v":208.337,"d":"$208.34"}}]
[null,"Business Analyst","Evaluates business processes, anticipating requirements, uncovering areas for improvement, and developing and implementing Solutions.",null,{"v":89,"d":"$89.00"},{"$f":"MAX(ROUND(E42*$C$56,2),0)","v":{"v":89,"d":"$89.00"}},{"v":91.67,"d":"$91.67"},{"$f":"MAX(ROUND(G42*$C$56,2),0)","v":{"v":91.67,"d":"$91.67"}},{"v":94.42,"d":"$94.42"},{"$f":"MAX(ROUND(I42*$C$56,2),0)","v":{"v":94.42,"d":"$94.42"}},{"v":97.25,"d":"$97.25"},{"$f":"MAX(ROUND(K42*$C$56,2),0)","v":{"v":97.25,"d":"$97.25"}},{"v":100.17,"d":"$100.17"},{"$f":"MAX(ROUND(M42*$C$56,2),0)","v":{"v":100.17,"d":"$100.17"}},{"v":103.18,"d":"$103.18"},{"$f":"MAX(ROUND(O42*$C$56,2),0)","v":{"v":103.18,"d":"$103.18"}},{"v":106.28,"d":"$106.28"},{"$f":"MAX(ROUND(Q42*$C$56,2),0)","v":{"v":106.28,"d":"$106.28"}},{"v":109.47,"d":"$109.47"},{"$f":"MAX(ROUND(S42*$C$56,2),0)","v":{"v":109.47,"d":"$109.47"}},{"v":112.75,"d":"$112.75"},{"$f":"MAX(ROUND(U42*$C$56,2),0)","v":{"v":112.75,"d":"$112.75"}},{"v":116.13,"d":"$116.13"},{"$f":"MAX(ROUND(W42*$C$56,2),0)","v":{"v":116.13,"d":"$116.13"}},{"$f":"(F42+H42+J42+L42+N42+P42+R42+T42+V42+X42)/10","v":{"v":102.03200000000001,"d":"$102.03"}}]
[null,"Senior Developer","Responsible for designing, testing, and implementing new and updated software programs.",null,{"v":151.44,"d":"$151.44"},{"$f":"MAX(ROUND(E43*$C$56,2),0)","v":{"v":151.44,"d":"$151.44"}},{"v":155.98,"d":"$155.98"},{"$f":"MAX(ROUND(G43*$C$56,2),0)","v":{"v":155.98,"d":"$155.98"}},{"v":160.66,"d":"$160.66"},{"$f":"MAX(ROUND(I43*$C$56,2),0)","v":{"v":160.66,"d":"$160.66"}},{"v":165.48,"d":"$165.48"},{"$f":"MAX(ROUND(K43*$C$56,2),0)","v":{"v":165.48,"d":"$165.48"}},{"v":170.44,"d":"$170.44"},{"$f":"MAX(ROUND(M43*$C$56,2),0)","v":{"v":170.44,"d":"$170.44"}},{"v":175.55,"d":"$175.55"},{"$f":"MAX(ROUND(O43*$C$56,2),0)","v":{"v":175.55,"d":"$175.55"}},{"v":180.82,"d":"$180.82"},{"$f":"MAX(ROUND(Q43*$C$56,2),0)","v":{"v":180.82,"d":"$180.82"}},{"v":186.24,"d":"$186.24"},{"$f":"MAX(ROUND(S43*$C$56,2),0)","v":{"v":186.24,"d":"$186.24"}},{"v":191.83,"d":"$191.83"},{"$f":"MAX(ROUND(U43*$C$56,2),0)","v":{"v":191.83,"d":"$191.83"}},{"v":197.58,"d":"$197.58"},{"$f":"MAX(ROUND(W43*$C$56,2),0)","v":{"v":197.58,"d":"$197.58"}},{"v":173.60199999999998,"d":"$173.60"}]
[null,"Developer","Responsible for developing, coding, installing, and maintaining software systems.",null,{"v":121.15,"d":"$121.15"},{"$f":"MAX(ROUND(E44*$C$56,2),0)","v":{"v":121.15,"d":"$121.15"}},{"v":124.78,"d":"$124.78"},{"$f":"MAX(ROUND(G44*$C$56,2),0)","v":{"v":124.78,"d":"$124.78"}},{"v":128.52,"d":"$128.52"},{"$f":"MAX(ROUND(I44*$C$56,2),0)","v":{"v":128.52,"d":"$128.52"}},{"v":132.38,"d":"$132.38"},{"$f":"MAX(ROUND(K44*$C$56,2),0)","v":{"v":132.38,"d":"$132.38"}},{"v":136.35,"d":"$136.35"},{"$f":"MAX(ROUND(M44*$C$56,2),0)","v":{"v":136.35,"d":"$136.35"}},{"v":140.44,"d":"$140.44"},{"$f":"MAX(ROUND(O44*$C$56,2),0)","v":{"v":140.44,"d":"$140.44"}},{"v":144.65,"d":"$144.65"},{"$f":"MAX(ROUND(Q44*$C$56,2),0)","v":{"v":144.65,"d":"$144.65"}},{"v":148.99,"d":"$148.99"},{"$f":"MAX(ROUND(S44*$C$56,2),0)","v":{"v":148.99,"d":"$148.99"}},{"v":153.46,"d":"$153.46"},{"$f":"MAX(ROUND(U44*$C$56,2),0)","v":{"v":153.46,"d":"$153.46"}},{"v":158.06,"d":"$158.06"},{"$f":"MAX(ROUND(W44*$C$56,2),0)","v":{"v":158.06,"d":"$158.06"}},{"v":138.87800000000001,"d":"$138.88"}]
[null,"Quality assurance/Test","Works with the development team to debug code, correct errors, and troubleshoot any issues with software code.",null,{"v":97.9,"d":"$97.90"},{"$f":"MAX(ROUND(E45*$C$56,2),0)","v":{"v":97.9,"d":"$97.90"}},{"v":100.84,"d":"$100.84"},{"$f":"MAX(ROUND(G45*$C$56,2),0)","v":{"v":100.84,"d":"$100.84"}},{"v":103.87,"d":"$103.87"},{"$f":"MAX(ROUND(I45*$C$56,2),0)","v":{"v":103.87,"d":"$103.87"}},{"v":106.99,"d":"$106.99"},{"$f":"MAX(ROUND(K45*$C$56,2),0)","v":{"v":106.99,"d":"$106.99"}},{"v":110.2,"d":"$110.20"},{"$f":"MAX(ROUND(M45*$C$56,2),0)","v":{"v":110.2,"d":"$110.20"}},{"v":113.51,"d":"$113.51"},{"$f":"MAX(ROUND(O45*$C$56,2),0)","v":{"v":113.51,"d":"$113.51"}},{"v":116.92,"d":"$116.92"},{"$f":"MAX(ROUND(Q45*$C$56,2),0)","v":{"v":116.92,"d":"$116.92"}},{"v":120.43,"d":"$120.43"},{"$f":"MAX(ROUND(S45*$C$56,2),0)","v":{"v":120.43,"d":"$120.43"}},{"v":124.04,"d":"$124.04"},{"$f":"MAX(ROUND(U45*$C$56,2),0)","v":{"v":124.04,"d":"$124.04"}},{"v":127.76,"d":"$127.76"},{"$f":"MAX(ROUND(W45*$C$56,2),0)","v":{"v":127.76,"d":"$127.76"}},{"v":112.24600000000001,"d":"$112.25"}]
[null,"Total Ad Hoc Professional Services Cost (Sum of 10-Year Average of Hourly Rates for all Identified Roles)",{"$nulls":22},{"$f":"SUM(Y41:Y45)","v":{"v":735.095,"d":"$735.10"}}]
[]
[]
[]
[null,"Table D"]
[null,"Consumer Price Index Urban (CPI-U) Adjustment:"]
[null,"A. CPI-U for Master Agreement Date MM/DD/20YY:",{"v":0,"d":"0.000000"}]
[null,"B. CPI-U for Participating Addendum Date:",{"v":0,"d":"0.000000"}]
[null,"C. Index Point Change equals B minus A:",{"$f":"C53-C52","v":{"v":0,"d":"0.000000"}}]
[null,"D. Equals C divided by A:",{"$f":"IFERROR(C54/C52,0)","v":{"v":0,"d":"0.000000"}}]
[null,"E. CPI-U Inflation Percentage equals B plus 1.00:",{"$f":"C55+1","v":{"v":1,"d":"1.000000"}}]

{"sheet":"Scoring Formula","index":2,"n_rows":14,"n_cols":2,"rows_kept":14,"merged":[[1,1,1,2],[2,1,2,2],[5,1,5,2],[8,1,10,3],[11,1,11,3],[12,1,12,3],[13,1,14,3]]}
[]
[null,"State of Georgia"]
[null,"In Conjunction with NASPO ValuePoint"]
[null,"Electronic Request for Proposals (\"eRFP\")"]
[null,"eRFP (Event) Number: 41900-DCH0000136"]
[null,"Event Name: Pharmacy Benefit Services"]
[null,"Attachment V - Pharmacy Clinical Management Services Cost Worksheet"]
[]
[null,"Cost Scoring Formula"]
[]
[]
[null,"\nThe Supplier deemed to have the most competitive cost response overall, as determined by the Lead State, will receive the maximum score for the cost criteria. As a general rule, other Suppliers’ cost responses will receive a percentage of the maximum score based on the percentage differential between the most competitive cost proposal and the specific proposal in question. This cost scoring can be accomplished using the following formula:"]
[null,"\nL/R x P = Z\n\nL = Price of the Supplier's response with the lowest cost.\nR = Total cost of the Proposal being ranked.\nP = Total points available for cost scoring.\nZ = Assigned Points."]
[null,"EXAMPLE  - The Lead State receives responses from two Suppliers on an RFP.  The RFP assigned 700 possible points for technical scores and 300 possible points for cost scores. Supplier A's cost proposal is $50,000. Supplier B's cost proposal is $55,000. As Supplier A offered the lowest cost, Supplier A receives 300 points. The issuing officer can calculate the number of cost points to assign to Supplier B's cost score by using the formula noted above. As shown below, Supplier B's total cost score is 272.7 points.\n\nL/R x P = Z\n($50,000/$55,000) x 300 = Z\n.909 x 300 = Z\n272.7 = Z"]